bitfinex/quotes_ETHUSD_20250720
["timestamp","ask_amount","ask_price","bid_price","bid_amount"]
[1752984874477,0.5857,3644.5,3644.4,0.001]
[1752984874655,0.1368,3644.5,3644.4,0.54991554]
[1752984874856,0.5857,3644.5,3644.4,4.387]
[1752984875026,0.5857,3644.5,3644.4,0.001]
[1752984875725,0.1368,3644.5,3644.4,0.001]
[1752984875938,0.1368,3644.5,3644.4,2.7449359]
[1752984876356,0.1368,3644.5,3644.4,7.1309359]
[1752984880047,0.1368,3644.5,3644.4,8.11843581]
[1752984881445,0.13457521,3644.5,3644.4,8.11843581]
[1752984881630,0.13457521,3644.5,3644.4,8.57013581]
[1752984881826,1.2306,3645.2,3644.4,8.11837567]
[1752984882075,0.1368,3645.1,3644.4,8.25517567]
[1752984882282,0.1368,3645.1,3644.6,2.74373011]
[1752984882565,0.1368,3645.1,3644.7,4.385]
[1752984883065,0.4489,3645.0,3644.7,7.1286965]
[1752984883271,0.1368,3645.1,3644.8,2.74363007]
[1752984884163,0.5857,3645.1,3644.7,7.128685]
[1752984884466,0.5857,3645.1,3644.8,2.74358023]
[1752984884666,0.5857,3645.1,3644.7,7.1286845]
[1752984884865,0.58381729,3645.1,3644.7,5.59657366]
[1752984885072,0.58381729,3645.1,3644.8,2.74358671]
[1752984885372,0.7817,3645.2,3644.9,2.74355493]
[1752984885569,0.4489,3645.1,3645.0,4.385]
[1752984885769,0.4489,3645.1,3644.7,0.1368]
[1752984885972,0.4489,3645.1,3644.8,4.385]
[1752984886488,0.4489,3645.0,3644.9,4.385]
[1752984886667,0.5857,3645.0,3644.9,4.385]
[1752984886967,0.5857,3645.0,3644.4,0.1378]
[1752984887166,0.002,3645.3,3644.4,0.001]
[1752984887167,1.278,3644.9,3644.4,0.001]
[1752984887336,0.9659,3644.5,3644.4,0.001]
[1752984887758,1.4148,3644.5,3644.4,0.001]
[1752984888163,0.1368,3644.5,3644.4,4.386]
[1752984889386,1.4148,3644.5,3644.4,4.386]
[1752984889548,0.1368,3644.5,3644.4,4.386]
[1752984889749,1.4148,3644.5,3644.4,4.386]
[1752984891103,1.4148,3644.5,3644.4,0.001]
[1752984891287,1.4148,3644.5,3644.4,4.386]
[1752984892279,1.4148,3644.5,3644.4,0.001]
[1752984893989,3.53288277,3645.1,3644.4,0.001]
[1752984894157,0.1368,3644.8,3644.4,0.001]
[1752984894554,0.461,3644.7,3644.5,4.384]
[1752984894890,0.461,3644.6,3644.5,4.384]
[1752984896003,0.461,3644.6,3644.4,0.001]
[1752984896302,0.5978,3644.5,3644.4,0.001]
[1752984896604,0.5978,3644.5,3644.4,4.385]
[1752984901169,0.1368,3644.5,3644.4,4.385]
[1752984901368,0.5978,3644.5,3644.4,4.385]
[1752984901668,0.5978,3644.5,3644.4,0.001]
[1752984901871,0.5978,3644.5,3644.4,4.384]
[1752984903122,0.5978,3644.5,3644.4,0.001]
[1752984903435,0.5978,3644.5,3644.4,4.384]
[1752984904528,0.1368,3644.5,3644.4,0.001]
[1752984904830,0.8285,3644.5,3644.4,0.001]
[1752984904985,1.2895,3644.5,3644.4,0.001]
[1752984905185,4.03336061,3644.5,3644.4,0.001]
[1752984905913,1.2895,3644.5,3644.4,0.001]
[1752984906785,4.03336061,3644.5,3644.4,0.001]
[1752984908624,1.2895,3644.5,3644.4,0.001]
[1752984908918,4.03336061,3644.5,3644.4,0.001]
[1752984910017,4.71106066,3644.5,3644.4,0.001]
[1752984910224,4.58336061,3644.5,3644.4,0.001]
[1752984910423,4.61765886,3644.5,3644.4,0.001]
[1752984911025,4.58336061,3644.5,3644.4,0.001]
[1752984911537,4.61765886,3644.5,3644.4,0.001]
[1752984911687,5.79199621,3644.5,3644.4,0.001]
[1752984913036,10.17399621,3644.5,3644.4,0.001]
[1752984913246,10.13969796,3644.5,3644.4,0.001]
[1752984916038,12.67869796,3644.5,3644.4,1e-08]
[1752984916243,13.13969796,3644.5,3644.4,1e-08]
[1752984920098,13.50121773,3644.5,3644.4,1e-08]
[1752984920926,7.10066304,3643.7,3643.6,0.001]
[1752984921127,4.10119039,3643.0,3642.9,0.001]
[1752984921331,8.48219039,3643.0,3642.9,0.001]
[1752984921626,8.92269039,3643.0,3642.9,0.001]
[1752984922040,11.92269039,3643.0,3642.9,0.001]
[1752984923238,4.381,3643.0,3642.9,0.001]
[1752984923443,0.8062,3643.4,3642.9,0.4449]
[1752984923616,4.381,3643.7,3643.0,3.18888616]
[1752984923954,4.381,3644.0,3643.3,2.7446912]
[1752984924237,4.381,3644.0,3643.2,0.7992]
[1752984924238,4.381,3644.0,3643.4,3.18856093]
[1752984924652,4.381,3644.0,3643.5,2.74461021]
[1752984924845,4.381,3644.1,3643.5,2.74461021]
[1752984925036,4.381,3644.1,3643.6,3.18842834]
[1752984925238,3.99071878,3644.3,3643.6,2.74452834]
[1752984925410,3.99071878,3644.3,3643.6,3.18842834]
[1752984925411,0.55,3644.2,3643.6,3.18842834]
[1752984925611,4.931,3644.2,3643.6,3.18842834]
[1752984926245,0.1368,3643.7,3643.6,3.18842834]
[1752984927022,0.1368,3643.7,3643.6,0.4439]
[1752984927413,0.1368,3643.7,3643.4,2.74461685]
[1752984927615,0.1368,3643.7,3643.2,3.54398027]
[1752984927818,0.1368,3643.7,3643.4,0.4439]
[1752984928314,0.1368,3643.7,3643.4,3.188576]
[1752984928737,0.1368,3643.7,3643.4,2.744676]
[1752984929814,7.90236598,3643.9,3643.0,0.4439]
[1752984930030,0.1368,3643.4,3643.0,3.18882635]
[1752984930236,0.1368,3643.4,3643.1,0.4439]
[1752984930749,2.88174531,3643.1,3642.3,0.4439]
[1752984930920,2.74499039,3643.0,3642.3,4.02098445]
[1752984931115,3.91636334,3643.0,3642.2,0.001]
[1752984931521,4.50067571,3643.0,3642.2,0.001]
[1752984931956,8.32907571,3643.0,3642.2,0.001]
[1752984932255,8.29476334,3643.0,3642.2,0.001]
[1752984932434,12.67476334,3643.0,3642.2,0.001]
[1752984933154,8.29476334,3643.0,3642.2,0.001]
[1752984933541,12.67476334,3643.0,3642.2,0.001]
[1752984934120,12.67476334,3643.0,3642.6,0.001]
[1752984939753,7.85426334,3643.0,3642.6,0.001]
[1752984939927,12.67476334,3643.0,3642.6,0.001]
[1752984940129,2.74499039,3643.0,3642.6,0.001]
[1752984940463,7.12499039,3643.0,3642.6,0.001]
[1752984940665,7.67499039,3643.0,3642.6,0.001]
[1752984941365,8.11549039,3643.0,3642.6,0.001]
[1752984942264,11.11549039,3643.0,3642.6,0.001]
[1752984942561,12.5791572,3643.0,3642.6,0.001]
[1752984942950,13.3554572,3643.0,3642.6,0.001]
[1752984945183,13.3544572,3643.0,3642.6,0.001]
[1752984946176,8.9754572,3643.0,3642.6,0.001]
[1752984946378,13.3544572,3643.0,3642.6,0.001]
[1752984946683,12.1376572,3643.0,3642.6,0.001]
[1752984948394,13.3488572,3643.0,3642.6,0.001]
[1752984950281,2.74499039,3643.0,3642.9,0.4441]
[1752984950458,7.12399039,3643.0,3642.9,0.4441]
[1752984950659,7.12399039,3643.0,3642.9,0.001]
[1752984951071,7.67399039,3643.0,3642.9,0.001]
[1752984953294,8.11329039,3643.0,3642.9,0.001]
[1752984953597,12.1991072,3643.0,3642.9,0.001]
[1752984955963,12.9698072,3643.0,3642.9,0.001]
[1752984956467,12.5305072,3643.0,3642.9,0.001]
[1752984956672,11.7578072,3643.0,3642.9,0.001]
[1752984959805,8.7568072,3643.0,3642.9,0.001]
[1752984960396,0.55,3643.0,3642.9,0.001]
[1752984960583,7.67099039,3643.0,3642.9,0.4441]
[1752984960984,7.67099039,3643.0,3642.9,0.001]
[1752984961491,8.11029039,3643.0,3642.9,0.001]
[1752984961683,11.11029039,3643.0,3642.9,0.001]
[1752984961888,12.87287481,3643.0,3642.9,0.001]
[1752984963909,12.87287481,3643.0,3642.9,1e-08]
[1752984964121,12.87287481,3643.0,3642.2,1e-08]
[1752984964122,2.74521646,3642.7,3642.2,1e-08]
[1752984964277,10.2241339,3642.2,3642.1,1e-08]
[1752984964476,14.5991339,3642.2,3642.1,1e-08]
[1752984964786,16.16207147,3642.2,3642.1,1e-08]
[1752984968420,11.78707147,3642.2,3642.1,1e-08]
[1752984968717,16.16207147,3642.2,3642.1,1e-08]
[1752984969502,24.06207144,3642.2,3642.1,1e-08]
[1752984969904,19.68707144,3642.2,3642.1,1e-08]
[1752984970209,24.06107144,3642.2,3642.1,1e-08]
[1752984971183,19.68707144,3642.2,3642.1,1e-08]
[1752984971396,24.06107144,3642.2,3642.1,1e-08]
[1752984974615,3.29672453,3640.7,3640.6,0.7618]
[1752984974819,7.67072453,3640.7,3640.6,0.001]
[1752984975407,15.03926511,3640.7,3640.6,0.001]
[1752984975609,15.03926511,3640.7,3640.6,1e-08]
[1752984977388,22.93926508,3640.7,3640.6,1e-08]
[1752984977699,23.75083142,3640.7,3640.6,1e-08]
[1752984978090,19.60389084,3640.7,3640.6,1e-08]
[1752984978307,18.83129084,3640.7,3640.6,1e-08]
[1752984978696,19.38129084,3640.7,3640.6,1e-08]
[1752984978894,18.83129084,3640.7,3640.6,1e-08]
[1752984979215,19.38129084,3640.7,3640.6,1e-08]
[1752984980226,19.38229084,3640.7,3640.6,1e-08]
[1752984980427,19.38129084,3640.7,3640.6,1e-08]
[1752984980633,15.00829084,3640.7,3640.6,1e-08]
[1752984980934,19.38129084,3640.7,3640.6,1e-08]
[1752984981223,19.83219084,3640.7,3640.6,1e-08]
[1752984982831,15.45919084,3640.7,3640.6,1e-08]
[1752984983134,19.38129084,3640.7,3640.6,1e-08]
[1752984983435,15.00829084,3640.7,3640.6,1e-08]
[1752984983636,19.38129084,3640.7,3640.6,1e-08]
[1752984984230,19.83219084,3640.7,3640.6,1e-08]
[1752984986240,15.45919084,3640.7,3640.6,1e-08]
[1752984986534,18.0187245,3640.7,3640.6,0.44750001]
[1752984986733,18.5687245,3640.7,3640.6,0.44750001]
[1752984987036,18.0187245,3640.7,3640.6,0.44750001]
[1752984987200,18.5687245,3640.7,3640.6,0.44750001]
[1752984987399,10.66872453,3640.7,3640.6,0.44750001]
[1752984987596,0.1368,3640.7,3640.6,0.44750001]
[1752984987834,7.25552453,3640.7,3640.6,1e-08]
[1752984988006,8.80573559,3640.7,3640.6,1e-08]
[1752984988337,3.1368,3640.7,3640.6,1e-08]
[1752984988520,7.5088,3640.7,3640.6,1.27610001]
[1752984988707,4.5078,3640.7,3640.6,1.27610001]
[1752984989035,0.1368,3640.7,3640.6,1.27610001]
[1752984991505,0.1368,3640.7,3640.6,4.02289998]
[1752984991710,0.1368,3641.2,3641.1,3.57501745]
[1752984992007,10.64595919,3641.8,3641.2,0.8286]
[1752984992008,0.1368,3641.4,3641.2,0.8286]
[1752984992543,0.1368,3641.4,3641.3,4.02236417]
[1752984993041,0.002,3642.2,3641.4,2.74619094]
[1752984993258,0.002,3642.2,3641.6,2.74604569]
[1752984993259,0.1368,3641.7,3641.6,2.74604569]
[1752984993545,0.1368,3641.7,3641.6,3.96174569]
[1752984993747,0.002,3642.2,3641.6,0.4475]
[1752984993946,0.1388,3642.2,3641.7,0.7682]
[1752984994311,0.1388,3642.2,3642.1,3.5138687]
[1752984994520,0.1388,3642.2,3642.1,3.9613687]
[1752984994729,0.1388,3642.2,3642.1,1.2157]
[1752984995251,0.1388,3642.2,3642.1,3.9613687]
[1752984996263,0.1388,3642.2,3642.1,4.63208668]
[1752984996474,0.002,3642.2,3642.1,4.63208668]
[1752984996681,0.002,3642.2,3642.1,7.63208668]
[1752984996828,0.002,3642.2,3642.1,7.76888668]
[1752984998278,0.002,3642.2,3642.1,12.13688668]
[1752984999166,1e-08,3642.2,3642.1,12.13688668]
[1752985000972,0.002,3643.0,3642.9,2.74506574]
[1752985001277,0.002,3643.0,3642.9,8.57548822]
[1752985001436,0.002,3643.0,3642.9,9.02298822]
[1752985001931,0.002,3643.0,3642.9,5.5921]
[1752985002160,0.002,3643.0,3642.9,1.2261]
[1752985002570,0.1388,3643.0,3642.9,1.2261]
[1752985002745,0.1388,3643.0,3642.9,3.97116574]
[1752985003356,0.002,3643.0,3642.9,3.97116574]
[1752985003571,0.002,3643.0,3642.9,2.33433817]
[1752985003873,0.002,3643.0,3642.9,1.2261]
[1752985004774,0.002,3643.0,3642.9,3.97116574]
[1752985005771,0.002,3643.0,3642.9,1.2261]
[1752985006274,0.002,3643.0,3642.9,3.97116574]
[1752985006458,0.002,3643.0,3642.1,0.67071798]
[1752985006664,3.29515237,3642.8,3641.9,0.7786]
[1752985006849,3.29515237,3642.8,3642.1,2.74565985]
[1752985007169,3.29515172,3642.8,3642.1,3.19315985]
[1752985007369,3.29515172,3642.8,3642.1,0.4475]
[1752985007872,2.7454337,3642.5,3641.9,0.7786]
[1752985008073,2.74521646,3642.7,3641.9,0.7786]
[1752985008074,0.55,3642.6,3641.9,0.7786]
[1752985008259,2.74538599,3642.5,3641.7,0.4475]
[1752985008475,2.74545438,3642.4,3641.7,3.19344883]
[1752985009479,2.7453726,3642.5,3641.7,0.4475]
[1752985009985,2.74555909,3642.3,3641.7,0.4475]
[1752985010349,0.55,3642.6,3641.7,3.19345871]
[1752985010551,2.74539158,3642.5,3641.7,4.30244025]
[1752985011681,2.74539158,3642.5,3641.8,2.74588204]
[1752985012060,0.55,3642.6,3641.7,1.55648154]
[1752985012250,0.55,3642.6,3641.9,2.74576936]
[1752985012787,2.74530343,3642.6,3642.0,0.459]
[1752985014286,2.74538392,3642.5,3642.0,0.459]
[1752985014603,2.74530663,3642.6,3641.6,0.7871]
[1752985014783,2.74550596,3642.4,3641.6,1.2461]
[1752985015168,3.47033137,3642.6,3641.7,0.459]
[1752985015353,0.4606,3642.8,3641.7,0.459]
[1752985015553,2.74530402,3642.6,3641.9,2.74579401]
[1752985015783,2.74530402,3642.6,3641.9,3.20479401]
[1752985015989,2.74530402,3642.6,3642.0,0.459]
[1752985016290,2.74538738,3642.5,3642.0,0.459]
[1752985016487,0.1368,3642.2,3641.8,2.74587739]
[1752985016786,0.1368,3642.2,3642.1,0.459]
[1752985018361,0.1368,3642.2,3642.1,1.2362]
[1752985018979,0.1368,3642.2,3642.1,3.5228687]
[1752985019188,0.1368,3642.5,3642.1,1.2362]
[1752985019357,0.1368,3642.5,3642.1,0.7772]
[1752985019558,0.1368,3642.5,3642.2,0.459]
[1752985020207,0.1368,3642.5,3642.1,0.7772]
[1752985020361,0.1368,3642.5,3642.1,1.2362]
[1752985021193,0.1368,3642.5,3642.1,0.7772]
[1752985021407,0.1368,3642.5,3642.2,0.459]
[1752985021615,0.1368,3642.5,3642.4,2.74544256]
[1752985021920,0.002,3643.0,3642.8,2.74513572]
[1752985022100,0.002,3643.0,3642.9,2.74506574]
[1752985022400,0.002,3643.0,3642.9,3.20406574]
[1752985023601,0.002,3643.0,3642.9,3.96656574]
[1752985023895,0.002,3643.0,3642.9,4.63774305]
[1752985024264,0.002,3643.0,3642.9,8.99774305]
[1752985024608,0.002,3643.0,3642.9,9.13454305]
[1752985026292,0.002,3643.0,3642.9,4.77454305]
[1752985026492,0.002,3643.0,3642.9,8.32656574]
[1752985027614,0.002,3643.0,3642.9,8.32556574]
[1752985029104,0.002,3643.0,3642.9,8.46236574]
[1752985032494,0.002,3643.3,3643.2,2.7448397]
[1752985032698,0.002,3643.3,3643.2,9.02577024]
[1752985033016,0.002,3643.3,3643.2,9.62157024]
[1752985034018,1e-08,3643.7,3643.6,6.54313836]
[1752985034220,1e-08,3643.7,3643.6,10.90013836]
[1752985034388,1e-08,3643.7,3643.6,13.37999294]
[1752985034798,1e-08,3643.9,3643.8,6.54298772]
[1752985035003,1e-08,3643.9,3643.8,10.89998772]
[1752985035204,1e-08,3643.9,3643.8,11.49578772]
[1752985036036,1e-08,3643.9,3643.8,11.49478772]
[1752985036204,1e-08,3643.9,3643.8,13.10712579]
[1752985036923,1e-08,3643.9,3643.8,13.10612579]
[1752985037229,1e-08,3643.9,3643.8,5.75112579]
[1752985037434,1e-08,3643.9,3643.8,8.49378772]
[1752985038619,1e-08,3643.9,3643.8,11.49378772]
[1752985039136,1e-08,3643.9,3643.8,4.355]
[1752985039333,1e-08,3643.9,3643.7,4.355]
[1752985039814,1e-08,3643.9,3643.8,2.74438772]
[1752985040015,1e-08,3643.9,3643.4,2.74462673]
[1752985040221,1e-08,3643.9,3643.5,4.354]
[1752985040508,1e-08,3643.9,3643.2,2.74476672]
[1752985040814,0.4636,3643.8,3643.3,4.354]
[1752985041121,0.4636,3643.8,3643.3,7.09876274]
[1752985041319,1e-08,3643.9,3643.4,3.19601434]
[1752985041526,1e-08,3643.9,3643.7,2.74439472]
[1752985041707,1e-08,3643.9,3643.8,2.74438772]
[1752985041905,1e-08,3643.9,3643.8,7.84958772]
[1752985042112,1e-08,3643.9,3643.8,8.30098772]
[1752985042332,1e-08,3643.9,3643.8,9.40554033]
[1752985044782,1e-08,3643.9,3643.8,8.95414033]
[1752985045134,1e-08,3643.9,3643.8,9.40554033]
[1752985045369,1e-08,3643.9,3643.8,12.40554033]
[1752985049104,1e-08,3644.7,3644.0,0.771]
[1752985049259,1e-08,3644.7,3644.6,2.74378532]
[1752985049581,1e-08,3644.7,3644.6,7.09478532]
[1752985049764,1e-08,3644.7,3644.6,7.54618532]
[1752985049965,1e-08,3644.7,3644.6,11.31718532]
[1752985051173,1e-08,3644.7,3644.6,7.86578532]
[1752985051393,1e-08,3644.7,3644.6,7.09478532]
[1752985052285,1e-08,3644.7,3644.6,8.15492154]
[1752985052992,1e-08,3644.7,3644.6,2.74378532]
[1752985053199,1e-08,3644.7,3644.6,7.09378532]
[1752985054256,1e-08,3644.7,3644.6,7.54518532]
[1752985058294,1e-08,3644.7,3644.6,11.30788532]
[1752985058998,1e-08,3644.7,3644.6,10.85648532]
[1752985059161,1e-08,3644.7,3644.6,6.64328532]
[1752985059358,1e-08,3644.7,3644.6,11.97514463]
[1752985059784,1e-08,3644.7,3644.6,12.42654463]
[1752985061576,1e-08,3644.7,3644.6,12.42554463]
[1752985062795,1e-08,3644.7,3644.6,8.07854463]
[1752985062992,1e-08,3644.7,3644.6,12.42554463]
[1752985064501,0.4636,3645.5,3644.6,12.42554463]
[1752985064502,0.8115,3646.4,3645.0,0.55]
[1752985064723,0.002,3646.8,3645.8,6.55418222]
[1752985065013,0.002,3646.8,3645.8,11.35158222]
[1752985065216,0.002,3646.8,3646.0,2.74273176]
[1752985065502,0.002,3646.8,3646.0,10.08873176]
[1752985065705,0.002,3646.8,3646.0,11.49816316]
[1752985066107,0.4656,3646.7,3646.0,11.49816316]
[1752985066295,0.4656,3646.7,3646.0,11.94956316]
[1752985066496,0.002,3646.7,3646.0,11.94956316]
[1752985068711,0.002,3646.7,3646.0,7.60356316]
[1752985068895,0.002,3646.7,3646.0,11.94756316]
[1752985069069,0.002,3646.7,3646.1,5.74265653]
[1752985069270,1e-08,3646.2,3646.1,9.0763659]
[1752985069810,0.002,3646.8,3646.7,3.54380528]
[1752985070012,0.002,3646.8,3646.7,7.88780528]
[1752985070507,0.002,3646.8,3646.7,11.36230528]
[1752985070708,0.002,3647.2,3647.1,2.74190452]
[1752985071012,0.002,3647.2,3647.1,7.08490452]
[1752985071188,0.002,3647.2,3647.1,11.36100452]
[1752985071385,0.002,3647.2,3647.1,6.54350452]
[1752985071597,0.002,3647.2,3647.1,11.36100452]
[1752985071903,0.002,3647.2,3647.1,12.34383485]
[1752985074277,1e-08,3647.3,3647.2,5.74182934]
[1752985074502,1e-08,3647.4,3647.3,2.74175417]
[1752985074729,1e-08,3647.4,3647.3,7.55825417]
[1752985076202,1e-08,3647.4,3647.3,10.55825417]
[1752985076413,1e-08,3647.4,3647.3,12.87679941]
[1752985076812,1e-08,3647.4,3647.3,13.42679941]
[1752985076989,1e-08,3647.4,3647.3,20.00679941]
[1752985077496,1e-08,3648.0,3647.9,2.74130321]
[1752985077695,2.73941624,3650.5,3647.9,2.74130321]
[1752985077696,0.1368,3650.2,3648.3,0.8016]
[1752985077935,0.8297,3649.8,3649.5,0.1368]
[1752985078105,0.4592,3649.7,3649.3,0.1368]
[1752985078295,0.4592,3649.7,3648.8,3.0]
[1752985078627,0.8297,3649.5,3648.5,3.0]
[1752985078802,0.8297,3649.5,3648.8,2.74062705]
[1752985079004,0.81616523,3649.4,3648.9,4.339]
[1752985079205,0.4592,3649.3,3648.9,4.339]
[1752985079405,0.4592,3649.2,3648.9,7.07948755]
[1752985079624,0.4592,3649.1,3648.1,0.8016]
[1752985079812,0.4592,3649.1,3648.6,2.74075219]
[1752985080018,0.8297,3649.0,3648.7,4.339]
[1752985080219,0.4592,3649.5,3649.3,2.74020326]
[1752985080529,3.5688591,3649.3,3648.4,3.0]
[1752985080731,0.8286,3648.9,3648.2,4.339]
[1752985080912,0.8286,3648.7,3648.2,4.339]
[1752985081116,0.49345971,3648.6,3648.2,4.339]
[1752985081430,0.86547033,3648.6,3648.3,4.339]
[1752985081798,0.49346065,3648.5,3647.9,2.74124218]
[1752985081997,0.49346065,3648.5,3648.0,4.338]
[1752985082244,0.4592,3648.4,3648.0,4.338]
[1752985082424,0.40627033,3648.6,3648.1,2.74115292]
[1752985082613,0.40627033,3648.6,3647.9,2.74130238]
[1752985082614,0.4592,3648.4,3648.2,7.07906835]
[1752985082794,0.4592,3648.3,3648.2,4.338]
[1752985085214,1.2101,3648.3,3648.2,4.338]
[1752985085413,1.2101,3648.3,3648.0,4.337]
[1752985085616,0.49346347,3648.2,3647.3,6.58]
[1752985085813,2.74122807,3648.0,3647.4,4.337]
[1752985086099,0.4592,3647.9,3647.4,4.337]
[1752985086304,3.20052042,3647.9,3647.4,4.337]
[1752985086529,0.4592,3647.8,3647.4,4.337]
[1752985086839,0.4592,3647.7,3647.4,4.337]
[1752985087200,0.4592,3647.6,3647.4,4.337]
[1752985087438,0.4592,3647.5,3647.4,4.337]
[1752985087940,1.2101,3647.5,3647.4,4.337]
[1752985088111,1.2101,3647.5,3647.2,4.337]
[1752985088438,0.4592,3647.4,3647.2,4.337]
[1752985088802,0.1723878,3647.4,3646.9,0.1368]
[1752985089116,0.4592,3647.3,3647.0,4.337]
[1752985089900,0.4592,3647.2,3647.0,4.337]
[1752985090102,0.4592,3647.1,3647.0,4.337]
[1752985091943,0.4592,3647.1,3645.8,0.7968]
[1752985091944,0.8316,3647.0,3645.8,0.7968]
[1752985092143,0.49347568,3646.9,3645.8,0.7968]
[1752985092323,3.57373704,3646.8,3646.1,7.336]
[1752985092519,2.77648738,3646.7,3646.1,7.336]
[1752985092724,3.23568738,3646.7,3646.1,7.336]
[1752985092921,3.20149189,3646.6,3646.1,4.336]
[1752985093129,0.4592,3646.5,3646.1,4.336]
[1752985093462,2.74251671,3646.3,3646.1,4.336]
[1752985093758,1.2908,3646.2,3646.1,4.336]
[1752985097744,0.8316,3647.3,3646.2,3.7968]
[1752985097936,0.8316,3647.3,3646.9,2.74203418]
[1752985098246,0.4592,3647.2,3647.0,4.336]
[1752985098648,0.8316,3647.3,3647.0,4.336]
[1752985098942,0.4592,3647.1,3647.0,4.336]
[1752985100449,0.4592,3647.1,3647.0,4.337]
[1752985101165,0.8316,3647.3,3647.0,4.337]
[1752985101361,0.86587192,3647.3,3647.1,2.74189286]
[1752985101537,1.222,3647.6,3647.2,7.0768159]
[1752985101939,0.461,3647.5,3647.2,4.335]
[1752985102344,0.461,3647.5,3647.2,7.07680674]
[1752985102864,0.1368,3647.4,3647.2,7.0768039]
[1752985103968,0.8326,3648.1,3647.3,4.335]
[1752985104143,0.461,3648.1,3647.7,2.74138885]
[1752985104467,2.7407068,3648.7,3647.7,2.74138885]
[1752985104468,0.8326,3647.9,3647.7,4.335]
[1752985104631,0.461,3647.8,3647.4,4.334]
[1752985104964,2.74151574,3647.7,3647.4,4.334]
[1752985105363,0.461,3647.6,3647.4,4.334]
[1752985105746,0.461,3647.5,3647.2,4.334]
[1752985105942,0.461,3647.4,3647.2,4.334]
[1752985106143,0.55,3647.8,3647.2,4.334]
[1752985106365,0.461,3647.4,3647.2,7.07581345]
[1752985106581,0.461,3647.7,3647.2,7.07581345]
[1752985106736,0.55,3647.8,3647.2,7.07581345]
[1752985107069,0.461,3647.6,3647.2,7.07581345]
[1752985107954,0.461,3647.6,3647.2,4.334]
[1752985108155,0.461,3647.5,3647.2,4.334]
[1752985108337,0.461,3647.4,3647.2,4.334]
[1752985110060,0.461,3647.6,3647.2,4.334]
[1752985110362,0.461,3647.5,3647.2,4.334]
[1752985110559,2.74147479,3647.7,3647.2,4.334]
[1752985110750,0.461,3647.4,3647.2,4.334]
[1752985111459,0.461,3647.7,3647.2,4.334]
[1752985111659,0.461,3647.6,3647.2,4.334]
[1752985113175,0.461,3647.6,3647.2,7.07576649]
[1752985113684,0.461,3647.5,3647.2,4.334]
[1752985113854,0.461,3647.4,3647.2,4.334]
[1752985114056,0.461,3647.3,3647.2,4.334]
[1752985114478,4.0106709,3647.3,3647.0,4.333]
[1752985114690,0.461,3647.2,3647.0,4.333]
[1752985114890,0.49527286,3647.2,3647.0,0.001]
[1752985115054,2.87864936,3647.2,3647.0,0.001]
[1752985115254,0.461,3647.1,3647.0,0.001]
[1752985115760,3.20290452,3647.1,3647.0,0.001]
[1752985116450,5.25316645,3647.1,3647.0,0.001]
[1752985116649,5.28744025,3647.1,3647.0,0.001]
[1752985116854,12.61944025,3647.1,3647.0,0.001]
[1752985117148,12.58516645,3647.1,3647.0,0.001]
[1752985117590,12.53516645,3647.1,3647.0,0.001]
[1752985118454,4.10025568,3646.5,3646.4,0.001]
[1752985118660,11.84228125,3646.5,3646.4,0.001]
[1752985119579,12.30328125,3646.5,3646.4,0.001]
[1752985122693,0.8255,3647.0,3646.4,0.001]
[1752985122895,2.74184813,3647.2,3646.5,2.74234668]
[1752985123096,0.1368,3646.9,3646.5,2.74234668]
[1752985123500,0.1368,3646.9,3646.6,3.17764875]
[1752985123873,0.1368,3646.9,3646.6,0.4354]
[1752985124116,0.1368,3646.9,3646.6,3.17767393]
[1752985124272,0.1368,3646.9,3646.6,0.4354]
[1752985124472,0.1368,3646.9,3646.7,0.31787356]
[1752985124694,0.1368,3646.9,3646.7,2.7421541]
[1752985124907,0.1368,3646.9,3646.7,3.1775541]
[1752985125911,0.1368,3646.9,3646.4,4.332]
[1752985126286,0.1368,3646.6,3646.4,4.332]
[1752985127288,0.1368,3646.6,3646.4,7.07442448]
[1752985127904,0.1368,3646.6,3646.5,1.41710036]
[1752985128412,0.7596,3647.7,3647.3,2.74169446]
[1752985128610,0.7596,3647.7,3646.5,2.24440036]
[1752985128611,0.1368,3647.3,3646.9,4.33]
[1752985128779,3.20282969,3647.2,3646.6,0.1368]
[1752985129104,0.1368,3647.0,3646.7,4.33]
[1752985129913,1.3574,3647.0,3646.7,4.33]
[1752985130216,0.1368,3646.7,3646.4,0.001]
[1752985130881,0.1368,3646.7,3646.4,3.19771778]
[1752985131916,0.1368,3646.7,3646.4,0.4553]
[1752985132087,0.1368,3646.7,3646.4,0.001]
[1752985132496,0.49957756,3646.7,3646.4,0.001]
[1752985132690,0.1368,3646.6,3646.4,0.001]
[1752985135921,0.1368,3646.6,3646.4,0.4553]
[1752985136307,0.1368,3646.6,3646.4,4.22486504]
[1752985136512,0.1368,3646.6,3646.5,3.19665568]
[1752985137260,2.74168493,3647.4,3646.5,3.19665568]
[1752985137261,0.55,3647.4,3646.7,2.74219028]
[1752985137395,0.1368,3646.9,3646.8,2.74212919]
[1752985137600,0.1368,3646.9,3646.8,4.26074768]
[1752985138531,0.7647,3647.6,3646.8,4.26074768]
[1752985138826,3.4653,3647.8,3646.8,4.26074768]
[1752985138827,0.1368,3647.1,3646.9,3.19635489]
[1752985139034,0.1368,3647.1,3647.0,7.5242797]
[1752985139599,3.7647,3647.9,3647.0,7.5242797]
[1752985139855,0.1368,3647.4,3647.1,2.74189941]
[1752985139999,0.1368,3647.4,3647.2,2.74181813]
[1752985140322,0.1368,3647.4,3647.3,4.328]
[1752985140798,3.34385213,3647.4,3646.8,1.96121849]